bitfinex/quotes_SOLUSD_20250518
["timestamp","ask_amount","ask_price","bid_price","bid_amount"]
[1747586502942,11.98954832,175.9,175.89,21.5]
[1747586503148,34.58386654,175.9,175.89,21.5]
[1747586503663,28.27936654,175.9,175.89,21.5]
[1747586505239,5.68504832,175.9,175.89,21.5]
[1747586505574,28.27936654,175.9,175.89,21.5]
[1747586505736,19.78384665,175.9,175.89,21.5]
[1747586506654,5.68504832,175.9,175.89,21.5]
[1747586506852,19.78384665,175.9,175.89,21.5]
[1747586508566,5.68504832,175.9,175.89,21.5]
[1747586508751,19.78384665,175.9,175.89,21.5]
[1747586508943,5.68472514,175.91,175.89,21.5]
[1747586509147,14.09879833,175.9,175.89,21.5]
[1747586510469,32.74844719,175.9,175.89,21.5]
[1747586510784,46.84724552,175.9,175.89,21.5]
[1747586510956,18.64964886,175.89,175.84,21.5]
[1747586511164,14.09879833,175.85,175.84,21.5]
[1747586512965,19.7854631,175.85,175.84,21.5]
[1747586514956,38.43511196,175.85,175.84,21.5]
[1747586515277,18.64964886,175.84,175.82,0.55978735]
[1747586515591,32.74844719,175.83,175.82,0.55978735]
[1747586516646,32.74844719,175.83,175.79,233.68]
[1747586516874,14.09879833,175.8,175.79,20.9]
[1747586517077,19.78708046,175.8,175.79,20.9]
[1747586522185,38.43672932,175.8,175.79,20.9]
[1747586522462,40.04302932,175.8,175.79,20.9]
[1747586522658,19.78708046,175.8,175.79,20.9]
[1747586522886,5.68805111,175.81,175.79,20.9]
[1747586523197,5.68601808,175.87,175.79,46.9]
[1747586523367,19.78481641,175.87,175.79,46.9]
[1747586523763,19.78481641,175.87,175.79,52.5884509]
[1747586523962,32.74844719,175.86,175.79,46.9]
[1747586524374,14.09879833,175.85,175.79,46.9]
[1747586524553,5.6873116,175.83,175.79,20.9]
[1747586524754,19.78610993,175.83,175.79,20.9]
[1747586524978,14.09879833,175.82,175.79,20.9]
[1747586525380,5.6873116,175.83,175.79,20.9]
[1747586525609,32.74844719,175.82,175.79,20.9]
[1747586526593,5.68795859,175.81,175.79,20.9]
[1747586527285,19.78675692,175.81,175.79,20.9]
[1747586527589,5.68795859,175.81,175.79,20.9]
[1747586527905,18.64964886,175.82,175.79,20.9]
[1747586527906,14.09879833,175.83,175.79,20.9]
[1747586528677,5.68763508,175.82,175.79,20.9]
[1747586530766,14.09879833,175.82,175.79,20.9]
[1747586531064,18.64964886,175.87,175.79,20.9]
[1747586531393,32.74844719,175.87,175.79,20.9]
[1747586531694,5.68601808,175.87,175.79,26.58860475]
[1747586531893,19.78481641,175.87,175.79,26.58860475]
[1747586532759,5.68601808,175.87,175.79,26.58860475]
[1747586533761,5.68666477,175.85,175.79,52.58860475]
[1747586534083,14.09879833,175.83,175.79,20.9]
[1747586534377,14.09879833,175.82,175.79,20.9]
[1747586534589,18.64964886,175.84,175.79,20.9]
[1747586534590,14.09879833,175.8,175.79,20.9]
[1747586535484,18.64964886,175.8,175.79,20.9]
[1747586535697,19.90332669,175.85,175.79,20.9]
[1747586535698,14.21666192,175.85,175.79,20.9]
[1747586535883,14.09879833,175.82,175.79,20.9]
[1747586536069,14.09879833,175.81,175.79,20.9]
[1747586536873,14.09879833,175.8,175.79,20.9]
[1747586537185,14.09879833,175.82,175.79,20.9]
[1747586537781,5.68795859,175.81,175.79,20.9]
[1747586539560,14.09879833,175.8,175.79,20.9]
[1747586539770,38.43672932,175.8,175.79,20.9]
[1747586540686,24.33793099,175.8,175.79,20.9]
[1747586541286,38.43672932,175.8,175.79,20.9]
[1747586542381,24.33793099,175.8,175.79,20.9]
[1747586542776,5.68805676,175.81,175.79,20.9]
[1747586543378,18.64964886,175.83,175.79,20.9]
[1747586544269,24.33709817,175.83,175.79,20.9]
[1747586544587,38.4358965,175.83,175.79,20.9]
[1747586544787,14.09879833,175.82,175.79,20.9]
[1747586545390,24.33709817,175.83,175.79,20.9]
[1747586545391,14.09879833,175.81,175.79,20.9]
[1747586545590,32.74844719,175.8,175.79,20.9]
[1747586546288,38.43672932,175.8,175.79,20.9]
[1747586546593,24.33793099,175.8,175.79,20.9]
[1747586549181,38.43672932,175.8,175.79,20.9]
[1747586549774,40.07952932,175.8,175.79,20.9]
[1747586552995,137.4,175.84,175.79,20.9]
[1747586553175,38.43575879,175.83,175.79,20.9]
[1747586553375,14.09879833,175.8,175.79,20.9]
[1747586554088,19.78708046,175.8,175.79,20.9]
[1747586554283,38.43672932,175.8,175.79,20.9]
[1747586554476,24.33793099,175.8,175.79,20.9]
[1747586554682,38.43672932,175.8,175.79,20.9]
[1747586564318,14.09879833,175.83,175.79,20.9]
[1747586564507,18.64964886,175.82,175.79,20.9]
[1747586564685,18.64964886,175.83,175.79,20.9]
[1747586565008,24.33705949,175.83,175.79,20.9]
[1747586565200,38.43585782,175.83,175.79,20.9]
[1747586566395,24.33705949,175.83,175.79,20.9]
[1747586566990,14.09879833,175.84,175.79,20.9]
[1747586567190,19.78584837,175.84,175.79,20.9]
[1747586567385,19.78584837,175.84,175.79,26.58855763]
[1747586567594,38.43514598,175.85,175.79,26.58855763]
[1747586567793,18.64964886,175.85,175.79,26.58855763]
[1747586567998,24.33638486,175.85,175.79,26.58855763]
[1747586568306,38.43518319,175.85,175.79,26.58855763]
[1747586569603,38.43518319,175.85,175.79,20.9]
[1747586570693,38.43518319,175.85,175.79,26.58844782]
[1747586572188,38.43518319,175.85,175.79,20.9]
[1747586573282,38.43518319,175.85,175.79,26.58857147]
[1747586573509,5.68638283,175.86,175.79,26.58857147]
[1747586573684,19.78518116,175.86,175.79,26.58857147]
[1747586576009,14.09879833,175.84,175.79,20.9]
[1747586576915,19.78643341,175.82,175.79,20.9]
[1747586580920,5.68763508,175.82,175.79,20.9]
[1747586581117,5.68739965,175.83,175.79,20.9]
[1747586581306,19.78619798,175.83,175.79,20.9]
[1747586582227,19.78588922,175.84,175.79,20.9]
[1747586582420,5.68709089,175.84,175.79,20.9]
[1747586583529,19.78588922,175.84,175.79,20.9]
[1747586584905,24.33637039,175.85,175.79,20.9]
[1747586585102,19.78521454,175.86,175.79,26.58855099]
[1747586585504,19.78521454,175.86,175.79,20.9]
[1747586585725,14.09879833,175.85,175.79,20.9]
[1747586586118,32.74844719,175.84,175.79,20.9]
[1747586587031,5.6873116,175.83,175.79,20.9]
[1747586587330,14.09879833,175.82,175.79,20.9]
[1747586587525,18.64964886,175.82,175.79,20.9]
[1747586588024,5.6873116,175.83,175.79,20.9]
[1747586589303,19.78610993,175.83,175.79,20.9]
[1747586589508,5.6873116,175.83,175.79,20.9]
[1747586589845,32.74844719,175.82,175.79,20.9]
[1747586590048,32.74844719,175.81,175.79,20.9]
[1747586591216,38.43672932,175.8,175.79,20.9]
[1747586592139,5.68828213,175.8,175.79,20.9]
[1747586592913,19.78708046,175.8,175.79,20.9]
[1747586593340,38.43672932,175.8,175.79,20.9]
[1747586594222,24.33793099,175.8,175.79,20.9]
[1747586594537,5.68828213,175.8,175.79,20.9]
[1747586594832,5.68802696,175.81,175.79,20.9]
[1747586595036,18.64964886,175.83,175.79,20.9]
[1747586595229,5.68763508,175.82,175.79,20.9]
[1747586595536,5.68737422,175.83,175.79,20.9]
[1747586595722,19.78617255,175.83,175.79,20.9]
[1747586596033,5.68737422,175.83,175.79,20.9]
[1747586599439,19.78617255,175.83,175.79,20.9]
[1747586600228,32.74844719,175.82,175.79,20.9]
[1747586600933,14.09879833,175.81,175.79,20.9]
[1747586601126,32.74844719,175.82,175.79,20.9]
[1747586601327,5.68763508,175.82,175.79,20.9]
[1747586601534,18.64964886,175.87,175.79,20.9]
[1747586601837,14.09879833,175.85,175.79,20.9]
[1747586602539,5.68698817,175.84,175.79,20.9]
[1747586602945,5.68698817,175.84,175.79,26.58859831]
[1747586603634,5.68698817,175.84,175.79,20.9]
[1747586604542,19.7857865,175.84,175.79,20.9]
[1747586604751,14.09879833,175.83,175.79,20.9]
[1747586606817,5.68763508,175.82,175.79,20.9]
[1747586607435,5.68737905,175.83,175.79,20.9]
[1747586609533,19.78617738,175.83,175.79,20.9]
[1747586610431,14.09879833,175.82,175.79,20.9]
[1747586610619,32.74844719,175.82,175.79,20.9]
[1747586611325,14.09879833,175.81,175.79,20.9]
[1747586611530,5.68828213,175.8,175.79,20.9]
[1747586614931,5.68798957,175.81,175.79,20.9]
[1747586615125,5.68798957,175.81,175.77,26.0]
[1747586615333,18.64964886,175.77,175.71,0.55020365]
[1747586615653,19.78967017,175.72,175.71,0.55020365]
[1747586615945,5.69087184,175.72,175.68,28.20987024]
[1747586616127,19.78967017,175.72,175.68,28.20987024]
[1747586616458,5.69087184,175.72,175.68,28.20987024]
[1747586616663,14.09879833,175.73,175.68,28.20987024]
[1747586617834,19.78957835,175.73,175.68,28.20987024]
[1747586618235,19.78957835,175.73,175.68,20.06]
[1747586619934,5.69078002,175.73,175.68,20.06]
[1747586620335,19.78957835,175.73,175.68,20.06]
[1747586621844,14.22433555,175.76,175.68,20.06]
[1747586622049,20.26514886,175.75,175.68,20.06]
[1747586622249,14.09879833,175.72,175.68,20.06]
[1747586622452,14.09879833,175.73,175.68,20.06]
[1747586623067,14.09879833,175.74,175.68,20.06]
[1747586623967,5.69054799,175.73,175.68,20.06]
[1747586624168,19.78934632,175.73,175.68,20.06]
[1747586625881,19.78903554,175.74,175.68,20.06]
[1747586626371,14.09879833,175.72,175.68,20.06]
[1747586627573,19.78962209,175.73,175.68,20.06]
[1747586628169,14.09879833,175.72,175.68,20.06]
[1747586628473,14.09879833,175.71,175.68,20.06]
[1747586629586,19.7902035,175.71,175.68,20.06]
[1747586633769,14.09879833,175.69,175.68,20.06]
[1747586633948,14.09879833,175.7,175.68,20.06]
[1747586634673,5.69184358,175.69,175.68,20.06]
[1747586638867,19.79064191,175.69,175.68,20.06]
[1747586639573,38.44029077,175.69,175.68,20.06]
[1747586641854,18.64964886,175.68,175.63,20.04]
[1747586642075,14.09879833,175.65,175.63,20.04]
[1747586642247,14.09879833,175.64,175.63,20.04]
[1747586642447,19.79226223,175.64,175.63,20.04]
[1747586642966,38.44191109,175.64,175.63,20.04]
[1747586647074,5.6934639,175.64,175.63,20.04]
[1747586647382,5.6924916,175.67,175.63,20.04]
[1747586647974,19.79106086,175.68,175.63,20.04]
[1747586649063,5.69226253,175.68,175.63,20.04]
[1747586649280,19.79106086,175.68,175.63,20.04]
[1747586651656,14.09879833,175.67,175.63,20.04]
[1747586652584,5.69281566,175.66,175.63,20.04]
[1747586652987,14.09879833,175.65,175.63,20.04]
[1747586653986,19.79161399,175.66,175.63,20.04]
[1747586654189,5.69281566,175.66,175.63,20.04]
[1747586656362,19.79161399,175.66,175.63,20.04]
[1747586657987,5.69281566,175.66,175.63,20.04]
[1747586659489,19.79161399,175.66,175.63,20.04]
[1747586662704,5.69281566,175.66,175.63,20.04]
[1747586663399,19.79161399,175.66,175.63,20.04]
[1747586663603,14.09879833,175.64,175.63,20.04]
[1747586665305,54.26437084,175.64,175.58,0.46773434]
[1747586665487,14.09879833,175.59,175.58,20.48773434]
[1747586666198,14.09879833,175.59,175.58,20.02]
[1747586667703,14.09879833,175.6,175.58,20.02]
[1747586667999,18.64964886,175.63,175.58,20.02]
[1747586668000,14.09879833,175.59,175.58,20.02]
[1747586668184,18.64964886,175.63,175.58,20.02]
[1747586668381,14.09879833,175.61,175.58,20.02]
[1747586669097,14.09879833,175.63,175.58,20.02]
[1747586669672,5.69411228,175.62,175.58,20.02]
[1747586669903,19.79291061,175.62,175.58,20.02]
[1747586671706,14.09879833,175.61,175.58,20.02]
[1747586672311,19.79291061,175.62,175.58,20.02]
[1747586672606,5.69385166,175.63,175.58,20.02]
[1747586673105,5.69351108,175.64,175.58,25.71539912]
[1747586673309,5.69351108,175.64,175.59,26.0]
[1747586673491,14.09879833,175.65,175.59,26.0]
[1747586673687,5.69281566,175.66,175.59,26.0]
[1747586673688,14.09879833,175.64,175.59,26.0]
[1747586674696,19.92485482,175.66,175.59,26.0]
[1747586674900,14.09879833,175.64,175.59,26.0]
[1747586675497,5.69378807,175.63,175.59,26.0]
[1747586680212,19.7925864,175.63,175.58,20.02]
[1747586681395,19.7925864,175.63,175.54,295.88]
[1747586681396,18.64964886,175.58,175.54,213.08]
[1747586681724,14.09879833,175.56,175.52,20.04]
[1747586682393,14.09879833,175.57,175.52,20.04]
[1747586682715,14.09879833,175.59,175.52,25.73725444]
[1747586683427,19.79394943,175.59,175.52,25.73725444]
[1747586683909,14.09879833,175.6,175.55,26.0]
[1747586684690,19.79323486,175.61,175.55,26.0]
[1747586685422,5.69443653,175.61,175.55,26.0]
[1747586686515,5.69411228,175.62,175.55,31.69614501]
[1747586686718,19.79291061,175.62,175.55,31.69614501]
[1747586687820,19.79353184,175.61,175.55,31.69614501]
[1747586688725,19.79353184,175.61,175.57,26.0]
[1747586688913,19.79353184,175.61,175.58,20.04]
[1747586689603,5.69473351,175.61,175.58,20.04]
[1747586691330,5.69411228,175.62,175.58,20.04]
[1747586691942,18.64964886,175.67,175.58,26.87424464]
[1747586692233,5.6924916,175.67,175.61,26.0]
[1747586693843,12.14118272,175.68,175.61,31.694332]
[1747586694614,26.23998105,175.68,175.61,31.694332]
[1747586694809,12.14118272,175.68,175.61,31.694332]
[1747586695203,26.23998105,175.68,175.61,31.694332]
[1747586695615,26.23998105,175.68,175.63,26.0]
[1747586695817,26.23998105,175.68,175.64,20.0]
[1747586699215,12.14118272,175.68,175.64,20.0]
[1747586699627,26.23998105,175.68,175.64,20.0]
[1747586700221,12.14118272,175.68,175.64,20.0]
[1747586701338,26.23998105,175.68,175.64,20.0]
[1747586702044,14.09879833,175.67,175.64,20.0]
[1747586703240,14.09879833,175.65,175.64,20.0]
[1747586703442,32.74844719,175.65,175.64,20.0]
[1747586705131,19.79161399,175.66,175.64,20.0]
[1747586705333,14.09879833,175.65,175.64,20.0]
[1747586705732,5.69281566,175.66,175.64,20.0]
[1747586706049,14.09879833,175.65,175.64,20.0]
[1747586707647,5.69281566,175.66,175.64,20.0]
[1747586707841,19.79161399,175.66,175.64,20.0]
[1747586708221,14.09879833,175.65,175.64,20.0]
[1747586708645,32.74844719,175.65,175.64,20.0]
[1747586709235,18.64964886,175.64,175.59,20.0]
[1747586709431,14.09879833,175.62,175.59,20.0]
[1747586709634,14.09879833,175.61,175.59,20.0]
[1747586710139,5.69476082,175.6,175.59,20.0]
[1747586710653,38.44320801,175.6,175.59,20.0]
[1747586713339,38.44320801,175.6,175.54,213.1]
[1747586713541,14.09879833,175.56,175.54,233.1]
[1747586714655,5.69638279,175.55,175.54,233.1]
[1747586715550,19.79518112,175.55,175.54,233.1]
[1747586716049,38.44482998,175.55,175.54,233.1]
[1747586716547,60.49118697,175.55,175.49,20.0]
[1747586716959,14.09879833,175.5,175.49,20.0]
[1747586717655,32.74844719,175.5,175.49,20.0]
[1747586718455,18.64964886,175.49,175.44,20.0]
[1747586718755,46.84724552,175.5,175.44,20.0]
[1747586718756,14.09879833,175.45,175.44,20.0]
[1747586719167,14.09879833,175.46,175.44,20.0]
[1747586719954,14.09879833,175.47,175.44,20.0]
[1747586720556,5.69865511,175.48,175.44,20.0]
[1747586720756,19.79745344,175.48,175.44,20.0]
[1747586721168,19.79683334,175.5,175.44,20.0]
[1747586721463,5.69774704,175.51,175.44,51.6999313]
[1747586721637,5.69774704,175.51,175.44,46.0]
[1747586721842,14.09879833,175.5,175.44,46.0]
[1747586722268,14.09879833,175.52,175.47,26.0]
[1747586722440,78.19280796,175.55,175.47,26.0]
[1747586722441,14.09879833,175.53,175.47,26.0]
[1747586722634,5.69730177,175.53,175.47,26.0]
[1747586722836,5.69730177,175.53,175.49,26.0]
[1747586723140,19.7961001,175.53,175.5,20.0]
[1747586723339,32.74844719,175.51,175.5,16.0]
[1747586724663,38.44612823,175.51,175.5,16.0]
[1747586724866,18.64964886,175.5,175.47,19.96]
[1747586725173,14.09879833,175.49,175.47,19.96]
[1747586725465,14.09879833,175.48,175.47,19.96]
[1747586726064,32.74844719,175.48,175.47,19.96]
[1747586726776,38.4471023,175.48,175.47,19.96]
[1747586727474,24.34830397,175.48,175.47,19.96]
[1747586727778,38.4471023,175.48,175.47,19.96]
[1747586729477,5.69865511,175.48,175.47,19.96]
[1747586729785,5.69835862,175.49,175.47,19.96]
[1747586730076,19.79652922,175.51,175.47,19.96]
[1747586730945,5.69741171,175.52,175.47,19.96]
[1747586732068,5.69708874,175.53,175.47,25.65893662]
[1747586732451,5.69674865,175.54,175.47,25.65893662]
[1747586732850,19.79554698,175.54,175.47,19.96]
[1747586733054,70.20267759,175.55,175.47,25.65892278]
[1747586733354,50.40740796,175.55,175.5,26.0]
[1747586734161,56.10388755,175.55,175.5,26.0]
[1747586735349,70.20268588,175.55,175.5,26.0]
[1747586736569,50.40740796,175.55,175.5,26.0]
[1747586736742,50.40740796,175.55,175.52,31.69706709]
[1747586736943,50.40740796,175.55,175.53,19.96]
[1747586737169,137.4,175.61,175.56,26.0]
[1747586737355,14.09879833,175.62,175.56,26.0]
[1747586738256,5.69449391,175.61,175.56,26.0]
[1747586738767,19.79329224,175.61,175.56,26.0]
[1747586739072,5.69449391,175.61,175.56,26.0]
[1747586740377,5.69411228,175.62,175.56,26.0]
[1747586740577,5.69411228,175.62,175.56,31.69604875]
[1747586740779,5.69411228,175.62,175.56,26.0]
[1747586742147,19.79291061,175.62,175.56,26.0]
[1747586742347,14.09879833,175.61,175.56,26.0]
[1747586742660,5.69476082,175.6,175.56,26.0]
[1747586743270,18.64964886,175.63,175.56,26.0]
[1747586743577,19.7928518,175.63,175.56,31.69594764]
[1747586743963,14.09879833,175.62,175.56,26.0]
[1747586744260,5.69405347,175.63,175.56,26.0]
[1747586744467,5.69405347,175.63,175.56,31.69582576]
[1747586744873,5.69340059,175.65,175.57,1.13884734]
[1747586745969,14.09879833,175.64,175.56,31.69582576]
[1747586746973,5.6924916,175.67,175.56,31.69582576]
[1747586747174,14.09879833,175.66,175.56,31.69582576]
[1747586747576,14.09879833,175.64,175.56,26.0]
[1747586747747,14.09879833,175.64,175.56,31.69602132]
[1747586747944,14.09879833,175.65,175.56,31.69602132]
[1747586748774,14.09879833,175.65,175.57,1.13881912]
[1747586748976,19.79128993,175.67,175.6,26.0]
[1747586749276,19.79128993,175.67,175.61,19.96]
[1747586749478,5.6924916,175.67,175.61,19.96]
[1747586749980,19.79128993,175.67,175.61,19.96]
[1747586750173,14.09879833,175.66,175.61,19.96]
[1747586750781,14.09879833,175.64,175.61,19.96]
[1747586752156,18.64964886,175.65,175.61,19.96]
[1747586752157,5.69313976,175.65,175.61,19.96]
[1747586752574,5.69289608,175.66,175.61,19.96]
[1747586753077,19.79169441,175.66,175.61,19.96]
[1747586753380,32.74844719,175.65,175.61,19.96]
[1747586753758,18.64964886,175.65,175.61,19.96]
[1747586754183,5.6934639,175.64,175.61,19.96]
[1747586754561,18.64964886,175.67,175.61,19.96]
[1747586754756,19.79161399,175.66,175.61,19.96]
[1747586755187,14.09879833,175.65,175.61,19.96]
[1747586755787,19.79161399,175.66,175.61,19.96]
[1747586755983,14.09879833,175.65,175.61,19.96]
[1747586756160,32.74844719,175.65,175.61,19.96]
[1747586756568,5.6934639,175.64,175.61,19.96]
[1747586757687,19.79132929,175.67,175.61,25.65443491]
[1747586757888,19.79132929,175.67,175.61,45.96]
[1747586758858,5.69253096,175.67,175.61,45.96]
[1747586759361,19.79132929,175.67,175.61,45.96]
[1747586759871,19.79132929,175.67,175.61,51.65426742]
[1747586760076,5.69253096,175.67,175.61,51.65426742]
[1747586760591,5.69253096,175.67,175.61,45.96]
[1747586762099,19.79132929,175.67,175.61,45.96]
[1747586762266,14.09879833,175.66,175.61,45.96]
[1747586762462,14.09879833,175.65,175.61,45.96]
[1747586762684,5.69313976,175.65,175.61,45.96]
[1747586763567,5.69313976,175.65,175.61,19.96]
[1747586763767,19.79193809,175.65,175.61,19.96]
[1747586764587,14.09879833,175.64,175.61,19.96]
[1747586764763,5.69378807,175.63,175.61,19.96]
[1747586765093,14.09879833,175.62,175.61,19.96]
[1747586765394,32.74844719,175.62,175.61,19.96]
[1747586766176,38.44255947,175.62,175.61,19.96]
[1747586767904,19.79291061,175.62,175.61,19.96]
[1747586768067,5.69411228,175.62,175.61,19.96]
[1747586770913,19.79291061,175.62,175.61,19.96]
[1747586771206,38.44255947,175.62,175.61,19.96]
[1747586771387,24.34376114,175.62,175.61,19.96]
[1747586771790,5.69411228,175.62,175.61,19.96]
[1747586771976,5.6934639,175.64,175.61,19.96]
[1747586772899,5.6934639,175.64,175.61,19.46]
[1747586773374,137.4,175.66,175.61,19.46]
[1747586773675,5.69255154,175.67,175.62,26.0]
[1747586774408,21.36202434,175.68,175.62,26.0]
[1747586774586,34.14766808,175.72,175.62,26.0]
[1747586774587,14.09879833,175.7,175.62,26.0]
[1747586774786,38.43964291,175.71,175.64,26.0]
[1747586775310,5.69119572,175.71,175.64,26.0]
[1747586775481,19.78999405,175.71,175.64,26.0]
[1747586776029,5.69119572,175.71,175.64,26.0]
[1747586776379,19.78999405,175.71,175.64,31.69342261]
[1747586776579,19.78972058,175.72,175.64,31.69342261]
[1747586776796,5.69059426,175.73,175.65,1.13829508]
[1747586776995,5.69059426,175.73,175.68,26.0]
[1747586777206,5.69059426,175.73,175.69,19.92]
[1747586777412,5.68990042,175.75,175.69,19.92]
[1747586778314,1.6483,175.77,175.7,1.13804654]
[1747586778518,44.11928564,175.81,175.7,1.13804654]
[1747586778519,14.09879833,175.78,175.7,1.13804654]
[1747586778928,14.09879833,175.79,175.72,26.0]
[1747586779303,14.09879833,175.74,175.68,213.08]
[1747586779503,14.09879833,175.73,175.69,45.92]
[1747586780217,14.09879833,175.73,175.69,19.92]
[1747586780399,14.09879833,175.7,175.69,19.92]
[1747586781323,14.09879833,175.71,175.69,19.92]
[1747586781618,14.09879833,175.72,175.69,19.92]
[1747586782123,14.09879833,175.71,175.69,19.92]
[1747586783629,19.79024332,175.71,175.69,19.92]
[1747586786527,5.69144499,175.71,175.69,19.92]
[1747586787430,5.69091437,175.72,175.69,19.92]
[1747586788126,10.0,175.82,175.69,19.92]
[1747586788127,19.78805133,175.77,175.69,52.75007851]
[1747586788334,5.689253,175.77,175.72,26.0]
[1747586788722,137.4,175.78,175.72,26.0]
[1747586788931,5.6888946,175.79,175.72,26.0]
[1747586789117,19.78769293,175.79,175.72,26.0]
[1747586789936,19.78769293,175.79,175.72,31.69058824]
[1747586790729,5.6888946,175.79,175.72,31.69058824]
[1747586792636,7.25024204,175.8,175.72,31.69058824]
[1747586793335,7.25024204,175.8,175.73,1.1377201]
[1747586793537,5.68834204,175.8,175.73,1.1377201]
[1747586793735,5.68834204,175.8,175.76,26.0]
[1747586794034,5.68834204,175.8,175.77,19.88]
[1747586795950,5.6873116,175.83,175.77,19.88]
[1747586796135,14.09879833,175.82,175.77,19.88]
[1747586796319,19.78610993,175.83,175.77,19.88]
[1747586797135,5.68691627,175.85,175.8,26.0]
[1747586797523,19.78520565,175.86,175.8,26.0]
[1747586798020,14.09879833,175.85,175.8,26.0]
[1747586798646,14.09879833,175.82,175.78,26.0]
[1747586799140,14.09879833,175.81,175.77,19.88]
[1747586799315,14.09879833,175.8,175.77,19.88]
[1747586799716,14.09879833,175.81,175.77,19.88]
[1747586800744,5.68828213,175.8,175.78,0.0445028]
[1747586800959,19.78708046,175.8,175.78,0.0445028]
[1747586801246,5.68828213,175.8,175.79,19.88]
[1747586802637,5.68798245,175.81,175.79,19.88]
[1747586803621,19.78678078,175.81,175.79,19.88]
[1747586804343,14.09879833,175.82,175.79,19.88]
[1747586804725,14.09879833,175.83,175.79,19.88]
[1747586805943,14.09879833,175.85,175.79,19.88]
[1747586807139,38.43478859,175.86,175.79,45.88]
[1747586807373,5.6863414,175.86,175.79,51.56850462]
[1747586807574,5.6863414,175.86,175.79,45.88]
[1747586807782,19.78513973,175.86,175.79,45.88]
[1747586807957,14.09879833,175.85,175.79,45.88]
[1747586808157,14.09879833,175.84,175.79,45.88]
[1747586809477,14.09879833,175.83,175.79,45.88]
[1747586809765,18.64964886,175.85,175.79,45.88]
[1747586809766,14.09879833,175.82,175.79,19.88]
[1747586809978,14.09879833,175.82,175.78,26.0445028]
[1747586809979,5.68828213,175.8,175.78,26.0445028]
[1747586810145,5.68828213,175.8,175.79,19.86]
[1747586811369,5.68805039,175.81,175.79,19.86]
[1747586813266,19.78610993,175.83,175.79,19.86]
[1747586813575,14.09879833,175.85,175.79,19.86]
[1747586814244,14.09879833,175.84,175.79,19.86]
[1747586814646,19.90219491,175.86,175.79,19.86]
[1747586814859,5.6863414,175.86,175.79,19.86]
[1747586815254,19.78513973,175.86,175.79,19.86]
[1747586815774,19.78513973,175.86,175.79,25.54857524]
[1747586815949,5.6863414,175.86,175.79,25.54857524]
[1747586816145,5.68607499,175.87,175.79,25.54857524]
[1747586816347,1.6304,175.89,175.82,26.0]
[1747586816671,5.68504832,175.9,175.82,26.0]
[1747586816855,19.78352347,175.91,175.83,5.6873116]
[1747586817167,14.09879833,175.9,175.84,26.0]
[1747586817366,14.09879833,175.89,175.85,19.82]
[1747586817574,14.09879833,175.9,175.85,19.82]
[1747586817865,19.78352347,175.91,175.85,19.82]
[1747586818944,14.09879833,175.9,175.85,19.82]
[1747586820179,14.09879833,175.89,175.85,19.82]
[1747586820355,19.89653799,175.91,175.85,19.82]
[1747586820561,14.09879833,175.9,175.85,19.82]
[1747586821084,5.68537153,175.89,175.85,19.82]
[1747586822676,14.09879833,175.88,175.85,19.82]
[1747586823162,24.334374,175.91,175.85,19.82]
[1747586823362,14.09879833,175.89,175.85,19.82]
[1747586824367,24.334374,175.91,175.85,19.82]
[1747586824685,5.68472514,175.91,175.85,25.50657834]
[1747586825672,14.09879833,175.92,175.85,25.50657834]
[1747586825885,5.68443031,175.92,175.85,25.50657834]
[1747586826683,19.78322864,175.92,175.85,19.82]
[1747586827364,19.78322864,175.92,175.85,25.50659566]
[1747586828474,5.68407889,175.93,175.85,25.50659566]
[1747586828860,6.3504,175.96,175.88,26.0]
[1747586829766,5.68347195,175.95,175.88,26.0]
[1747586829971,5.68347195,175.95,175.88,31.68540222]